bitfinex/quotes_BTCUSD_20240823
["timestamp","ask_amount","ask_price","bid_price","bid_amount"]
[1724413526091,4e-05,60859.0,60858.0,1.87223361]
[1724413526701,4e-05,60859.0,60858.0,1.95403361]
[1724413527137,0.02580459,60859.0,60858.0,2.28266661]
[1724413528227,0.00090311,60870.0,60869.0,1.150009]
[1724413528430,0.00090311,60870.0,60869.0,1.41401198]
[1724413528777,0.02666516,60870.0,60869.0,1.42626075]
[1724413529405,0.02666516,60870.0,60869.0,1.43426075]
[1724413531309,0.02666516,60870.0,60869.0,1.44126075]
[1724413531737,0.02670516,60870.0,60869.0,1.44126075]
[1724413533230,0.02670516,60870.0,60869.0,1.44552919]
[1724413537445,0.02670516,60870.0,60869.0,1.79710319]
[1724413537645,0.02670516,60870.0,60869.0,1.86490319]
[1724413538260,0.02670516,60870.0,60869.0,1.93700319]
[1724413538486,0.02670516,60870.0,60869.0,1.93000319]
[1724413538804,0.02670516,60870.0,60869.0,1.94400319]
[1724413539599,0.02670516,60870.0,60869.0,1.93000319]
[1724413539778,0.02670516,60870.0,60869.0,1.78210319]
[1724413539979,0.02670516,60870.0,60869.0,1.77310319]
[1724413540356,0.02670516,60870.0,60869.0,1.44452919]
[1724413541333,0.02670516,60870.0,60869.0,1.43052919]
[1724413541534,0.02670516,60870.0,60869.0,1.44452919]
[1724413541735,0.02670516,60870.0,60869.0,1.45852919]
[1724413541934,0.02670516,60870.0,60869.0,1.44452919]
[1724413542380,0.02670516,60870.0,60869.0,1.45852919]
[1724413554520,0.02670516,60870.0,60869.0,1.57058693]
[1724413559166,0.02670516,60870.0,60869.0,1.63698693]
[1724413563180,0.02670516,60870.0,60869.0,1.65998693]
[1724413564041,0.02670516,60870.0,60869.0,1.66198693]
[1724413564242,0.02670516,60870.0,60869.0,1.65998693]
[1724413564577,0.02670516,60870.0,60869.0,1.74318693]
[1724413565591,0.02670516,60870.0,60869.0,1.75552465]
[1724413567451,0.02670516,60870.0,60869.0,1.75652465]
[1724413567665,0.02670516,60870.0,60869.0,1.75552465]
[1724413568604,0.02670516,60870.0,60869.0,2.08609865]
[1724413569426,0.02670516,60870.0,60869.0,2.13538112]
[1724413569633,0.02670516,60870.0,60869.0,2.44179825]
[1724413570230,0.02670516,60870.0,60869.0,2.44379825]
[1724413570433,0.02670516,60870.0,60869.0,2.56300443]
[1724413570630,0.02670516,60870.0,60869.0,2.54036422]
[1724413571045,0.02670516,60870.0,60869.0,2.44179825]
[1724413571354,0.02670516,60870.0,60869.0,2.54036453]
[1724413571532,0.02670516,60870.0,60869.0,2.54036714]
[1724413571733,0.02670516,60870.0,60869.0,2.44379825]
[1724413571934,0.02670516,60870.0,60869.0,2.54236728]
[1724413572134,0.02670516,60870.0,60869.0,2.44179825]
[1724413572510,0.02670516,60870.0,60869.0,2.53837162]
[1724413572933,0.02670516,60870.0,60869.0,2.54037162]
[1724413573131,0.02670516,60870.0,60869.0,2.44179825]
[1724413573768,0.02670516,60870.0,60869.0,2.08609865]
[1724413573971,0.02670516,60870.0,60869.0,2.44077177]
[1724413574197,0.02670516,60870.0,60869.0,2.44277177]
[1724413574412,0.02670516,60870.0,60869.0,2.53733455]
[1724413574965,0.02670516,60870.0,60869.0,2.43877177]
[1724413575170,0.02670516,60870.0,60869.0,2.53733455]
[1724413575740,0.02670516,60870.0,60869.0,2.43877177]
[1724413576200,0.02670516,60870.0,60869.0,2.43877098]
[1724413576402,0.02670516,60870.0,60869.0,2.53733376]
[1724413576750,0.02670516,60870.0,60869.0,2.07176093]
[1724413576960,0.10780516,60870.0,60869.0,1.12995519]
[1724413577162,0.10780516,60870.0,60869.0,1.16799642]
[1724413577368,0.17350516,60870.0,60869.0,1.14229201]
[1724413577575,0.17350516,60870.0,60869.0,1.12995519]
[1724413577801,0.17350516,60870.0,60869.0,1.14229201]
[1724413577999,0.17350516,60870.0,60869.0,0.30852019]
[1724413578230,0.17350516,60870.0,60869.0,0.20852019]
[1724413578416,0.4508469,60870.0,60869.0,0.20852019]
[1724413578638,0.2865629,60870.0,60869.0,0.19627142]
[1724413578840,0.33536638,60870.0,60869.0,0.19200298]
[1724413579045,0.33536711,60870.0,60869.0,0.17800298]
[1724413579217,0.2865629,60870.0,60869.0,0.17800298]
[1724413579415,0.2865629,60870.0,60869.0,0.19837052]
[1724413579615,0.2865629,60870.0,60869.0,0.19137052]
[1724413579816,0.2865629,60870.0,60869.0,0.17737052]
[1724413580042,0.17450516,60870.0,60869.0,0.17737052]
[1724413580243,0.17450516,60870.0,60869.0,0.18437052]
[1724413580676,0.17450516,60870.0,60869.0,0.17737052]
[1724413581096,0.17550516,60870.0,60869.0,0.17737052]
[1724413581291,0.17450516,60870.0,60869.0,0.17737052]
[1724413581692,0.17450516,60870.0,60869.0,0.17837052]
[1724413581894,0.17350516,60870.0,60869.0,0.17837052]
[1724413582097,0.17450516,60870.0,60869.0,0.17837052]
[1724413583142,0.17350516,60870.0,60869.0,0.17837052]
[1724413583659,0.17350516,60870.0,60869.0,0.34265752]
[1724413583887,0.17350516,60870.0,60869.0,0.67123152]
[1724413585796,0.00098421,60877.0,60876.0,0.164268]
[1724413585968,0.00098421,60877.0,60876.0,1.388615]
[1724413586191,0.00098421,60877.0,60876.0,1.79536189]
[1724413586371,0.00098421,60877.0,60876.0,1.87436189]
[1724413586957,0.00298421,60877.0,60876.0,1.89233525]
[1724413587571,0.00198421,60877.0,60876.0,1.89233525]
[1724413587731,0.00198421,60877.0,60876.0,1.90633525]
[1724413587932,0.00098421,60877.0,60876.0,1.90633525]
[1724413588135,0.00098421,60877.0,60876.0,1.92033525]
[1724413588355,0.00098421,60877.0,60876.0,2.24887125]
[1724413588510,0.00098421,60877.0,60876.0,2.30176677]
[1724413588711,0.00098421,60877.0,60876.0,2.30834577]
[1724413588914,0.00098421,60877.0,60876.0,2.25545025]
[1724413589293,0.00098421,60877.0,60876.0,2.2677858]
[1724413589506,0.00098421,60877.0,60876.0,2.25545025]
[1724413589708,0.00098421,60877.0,60876.0,2.25544926]
[1724413591290,0.00098421,60877.0,60876.0,2.1807051]
[1724413595705,0.00098421,60877.0,60876.0,2.5937411]
[1724413596327,0.00098421,60877.0,60876.0,2.5897411]
[1724413596621,0.00098421,60877.0,60876.0,2.5917411]
[1724413597027,0.00090421,60884.0,60883.0,1.82391302]
[1724413597231,0.00090421,60884.0,60883.0,2.02888833]
[1724413597411,0.00090421,60884.0,60883.0,2.14441116]
[1724413598349,0.00090421,60884.0,60883.0,2.16541116]
[1724413599025,0.00090421,60884.0,60883.0,2.24271116]
[1724413599229,0.00090421,60884.0,60883.0,2.57120916]
[1724413599823,0.00090421,60884.0,60883.0,2.55323683]
[1724413600028,0.00090421,60884.0,60883.0,2.56020727]
[1724413600406,0.00090421,60884.0,60883.0,2.57420727]
[1724413600807,0.00090421,60884.0,60883.0,2.56020727]
[1724413601083,0.00090421,60884.0,60883.0,2.55020727]
[1724413601286,0.00090421,60884.0,60883.0,2.56420727]
[1724413601461,4e-05,60885.0,60884.0,2.279004]
[1724413601711,4e-05,60885.0,60884.0,2.61182495]
[1724413601911,4e-05,60885.0,60884.0,2.68551873]
[1724413602193,4e-05,60885.0,60884.0,2.61182495]
[1724413602400,4e-05,60885.0,60884.0,2.66089394]
[1724413602655,4e-05,60885.0,60884.0,2.66089391]
[1724413602882,0.00904201,60892.0,60884.0,2.66089391]
[1724413602883,0.00904201,60892.0,60891.0,1.89681902]
[1724413603089,0.00904201,60892.0,60891.0,2.183822]
[1724413603504,0.00904201,60892.0,60891.0,2.19928011]
[1724413604440,0.00904201,60892.0,60891.0,2.21328011]
[1724413604676,0.00904201,60892.0,60891.0,2.22728011]
[1724413604943,0.00904201,60892.0,60891.0,2.13708011]
[1724413605116,0.00904201,60892.0,60891.0,2.12308011]
[1724413605317,0.00904201,60892.0,60891.0,2.13708011]
[1724413605691,0.08784201,60892.0,60891.0,1.64167688]
[1724413605910,0.08784201,60892.0,60891.0,1.62767688]
[1724413606124,0.08759352,60892.0,60891.0,1.62767688]
[1724413606363,0.08759352,60892.0,60891.0,1.64167688]
[1724413606593,0.00879352,60892.0,60891.0,1.62767688]
[1724413606818,0.00879352,60892.0,60891.0,1.64167688]
[1724413607218,0.00879352,60892.0,60891.0,1.62767688]
[1724413607421,0.00879352,60892.0,60891.0,1.69327688]
[1724413607629,0.00879352,60892.0,60891.0,1.81627688]
[1724413607838,0.00879352,60892.0,60891.0,1.83027688]
[1724413608041,0.00879352,60892.0,60891.0,2.14473188]
[1724413608247,0.00879352,60892.0,60891.0,2.13073188]
[1724413608473,0.00879352,60892.0,60891.0,2.15873188]
[1724413608847,0.00879352,60892.0,60891.0,2.14473188]
[1724413609206,0.00879352,60892.0,60891.0,2.15873188]
[1724413609853,0.00879352,60892.0,60891.0,2.14473188]
[1724413610025,0.00879352,60892.0,60891.0,2.15873188]
[1724413610182,0.00879352,60892.0,60891.0,2.24023188]
[1724413611499,0.00879352,60892.0,60891.0,2.22623188]
[1724413611724,0.1262,60898.0,60891.0,2.22623188]
[1724413611933,0.1262,60898.0,60897.0,2.070178]
[1724413612179,0.1262,60898.0,60897.0,2.193178]
[1724413612354,0.1262,60898.0,60897.0,2.20902445]
[1724413614096,0.1262,60898.0,60897.0,2.22302445]
[1724413614297,0.11231619,60898.0,60897.0,2.22302445]
[1724413614521,0.11231619,60898.0,60897.0,2.2353554]
[1724413615050,0.11231619,60898.0,60897.0,2.2488554]
[1724413615251,0.11231619,60898.0,60897.0,1.86075243]
[1724413615446,0.11231619,60898.0,60897.0,2.13935571]
[1724413615761,0.11231619,60898.0,60897.0,2.14102445]
[1724413616157,0.11231619,60898.0,60897.0,1.84675243]
[1724413616354,0.18831619,60898.0,60897.0,1.42882943]
[1724413616690,0.18831619,60898.0,60897.0,1.73710145]
[1724413617050,0.11231619,60898.0,60897.0,1.73710145]
[1724413617214,0.11231619,60898.0,60897.0,1.72310145]
[1724413617713,0.11231619,60898.0,60897.0,1.73710145]
[1724413617880,0.11231619,60898.0,60897.0,1.72310145]
[1724413618094,0.11231619,60898.0,60897.0,2.03752445]
[1724413618295,0.11231619,60898.0,60897.0,2.08852445]
[1724413618499,0.11231619,60898.0,60897.0,1.72310145]
[1724413619140,0.11231619,60898.0,60897.0,1.73710145]
[1724413619264,0.11231619,60898.0,60897.0,1.72310145]
[1724413620240,0.11231619,60898.0,60897.0,1.73710145]
[1724413620588,0.11231619,60898.0,60897.0,1.72310145]
[1724413620992,0.41782519,60898.0,60897.0,0.04384645]
[1724413621200,0.74624319,60898.0,60897.0,0.04384645]
[1724413621402,0.202525,60892.0,60891.0,0.000822]
[1724413621604,0.277725,60892.0,60891.0,0.000822]
[1724413621799,0.1135,60892.0,60891.0,0.000822]
[1724413622471,0.1135,60892.0,60891.0,0.001822]
[1724413622905,0.1135,60892.0,60891.0,0.000822]
[1724413623482,0.277725,60892.0,60891.0,0.000822]
[1724413623890,0.609175,60892.0,60891.0,0.000822]
[1724413624676,0.606175,60892.0,60891.0,0.000822]
[1724413624874,0.001,60874.0,60864.0,0.28027202]
[1724413625104,0.001,60874.0,60871.0,0.34434078]
[1724413625105,0.0894,60873.0,60871.0,0.34434078]
[1724413625711,0.0894,60873.0,60871.0,0.18005978]
[1724413626342,0.0894,60873.0,60871.0,0.34434078]
[1724413626557,0.0904,60873.0,60872.0,0.1]
[1724413629054,0.0914,60873.0,60872.0,0.45333069]
[1724413629845,0.0914,60873.0,60872.0,0.28905169]
[1724413630683,0.0914,60873.0,60872.0,0.45333069]
[1724413633465,0.0914,60873.0,60872.0,0.18905169]
[1724413633744,0.0914,60873.0,60872.0,0.35333069]
[1724413635317,0.0914,60873.0,60872.0,0.35415269]
[1724413637340,0.0821,60873.0,60872.0,0.68271069]
[1724413639364,0.0821,60873.0,60872.0,0.35415269]
[1724413640005,0.08170471,60873.0,60872.0,0.35415269]
[1724413640623,0.08170471,60873.0,60872.0,0.68271069]
[1724413643906,0.08170471,60873.0,60872.0,1.01126869]
[1724413645531,0.002,60873.0,60872.0,1.01126869]
[1724413653915,0.002,60873.0,60872.0,1.07256869]
[1724413654509,0.002,60873.0,60872.0,1.18464209]
[1724413656419,0.49229154,60887.0,60876.0,0.328536]
[1724413656597,0.49229154,60887.0,60877.0,0.16400298]
[1724413656858,0.492693,60890.0,60878.0,0.164262]
[1724413657087,0.164233,60889.0,60879.0,0.16400298]
[1724413657328,0.164233,60889.0,60879.0,0.18028802]
[1724413658921,0.173233,60889.0,60879.0,0.18128802]
[1724413659324,0.0936,60888.0,60879.0,0.18128802]
[1724413659525,0.005,60887.0,60879.0,0.18128802]
[1724413659681,0.0806,60886.0,60879.0,0.18128802]
[1724413660070,0.0806,60884.0,60879.0,0.01728504]
[1724413660285,0.005,60887.0,60879.0,0.01728504]
[1724413660286,0.0926,60883.0,60879.0,0.01728504]
[1724413661041,0.0926,60883.0,60874.0,0.164272]
[1724413661246,0.0926,60883.0,60880.0,0.01627695]
[1724413661441,0.0926,60883.0,60879.0,0.002]
[1724413661645,0.0926,60883.0,60881.0,0.01626886]
[1724413661872,0.0946,60883.0,60880.0,0.01627695]
[1724413662069,0.0956,60883.0,60875.0,0.16500298]
[1724413662475,0.0946,60883.0,60876.0,0.01630931]
[1724413662776,0.0936,60883.0,60877.0,0.16400298]
[1724413662976,0.0936,60883.0,60877.0,0.1803042]
[1724413663822,0.0936,60883.0,60878.0,0.01897688]
[1724413664028,0.0936,60883.0,60878.0,0.16500298]
[1724413664250,0.0946,60883.0,60878.0,0.16500298]
[1724413664491,0.0926,60883.0,60878.0,0.16500298]
[1724413664706,0.0936,60883.0,60879.0,0.01628504]
[1724413664877,0.0956,60883.0,60879.0,0.01628504]
[1724413665081,0.0926,60883.0,60879.0,0.01628504]
[1724413665571,0.0936,60883.0,60879.0,0.01628504]
[1724413665788,0.0936,60883.0,60874.0,0.00720656]
[1724413666024,0.0946,60883.0,60880.0,0.01627695]
[1724413666257,0.0956,60883.0,60875.0,0.16400298]
[1724413666468,0.0956,60883.0,60876.0,0.0179769]
[1724413666680,0.0956,60883.0,60877.0,0.18197988]
[1724413666884,0.0956,60883.0,60877.0,0.16400298]
[1724413667068,0.0956,60883.0,60878.0,0.01629313]
[1724413667402,0.0926,60883.0,60878.0,0.18029611]
[1724413667582,0.0758,60882.0,60878.0,0.18029611]
[1724413668038,0.050348,60882.0,60878.0,0.18029611]
[1724413668441,0.09918584,60882.0,60878.0,0.18029611]
[1724413668932,0.10018584,60882.0,60878.0,0.18029611]
[1724413673450,0.10018584,60882.0,60879.0,0.001]
[1724413673842,0.10018584,60882.0,60879.0,0.003]
[1724413674221,0.10018996,60882.0,60879.0,0.003]
[1724413674677,0.09918996,60882.0,60879.0,0.003]
[1724413675444,0.10018996,60882.0,60879.0,0.003]
[1724413676619,0.10018996,60882.0,60880.0,0.01627695]
[1724413677012,0.10018996,60882.0,60881.0,0.01626886]
[1724413677729,0.10018996,60882.0,60879.0,0.003]
[1724413677933,0.09918996,60882.0,60881.0,0.01626886]
[1724413678145,0.09918996,60882.0,60879.0,0.003]
[1724413678146,0.1001923,60882.0,60880.0,0.01627695]
[1724413678353,0.04884408,60882.0,60881.0,0.53769924]
[1724413678615,0.00090421,60883.0,60882.0,0.167252]
[1724413678833,0.00090421,60883.0,60882.0,0.73993526]
[1724413679035,0.00090421,60883.0,60882.0,0.41143126]
[1724413679464,0.00090421,60883.0,60882.0,0.40943126]
[1724413679872,0.00090421,60883.0,60882.0,0.41143126]
[1724413680072,0.00090421,60883.0,60882.0,0.42769202]
[1724413680501,0.00090421,60883.0,60882.0,0.40971574]
[1724413680917,0.00090421,60883.0,60882.0,0.42769157]
[1724413681127,0.00190421,60883.0,60882.0,0.75619557]
[1724413681343,0.00090421,60883.0,60882.0,0.75619557]
[1724413681546,0.00090421,60883.0,60882.0,0.4276913]
[1724413681750,0.00090421,60883.0,60882.0,0.03423632]
[1724413681957,0.00090421,60883.0,60882.0,0.01626076]
[1724413682340,0.00090421,60883.0,60882.0,0.08066076]
[1724413682774,0.00090421,60883.0,60882.0,0.08166076]
[1724413683588,0.00090421,60883.0,60882.0,0.08066076]
[1724413683792,0.00090421,60883.0,60882.0,0.08166076]
[1724413683963,0.00090421,60883.0,60882.0,0.08586506]
[1724413684401,0.00090421,60883.0,60882.0,0.08786506]
[1724413685019,0.00090421,60883.0,60882.0,0.10584077]
[1724413685192,0.00090421,60883.0,60882.0,0.08786506]
[1724413685503,0.00090421,60883.0,60882.0,0.08586506]
[1724413685669,0.00090421,60883.0,60882.0,0.08486506]
[1724413685871,0.00090421,60883.0,60882.0,0.08586506]
[1724413686862,0.00090421,60883.0,60882.0,0.08786506]
[1724413687553,0.00090421,60883.0,60882.0,0.08486506]
[1724413692419,0.00090421,60883.0,60882.0,0.08586506]
[1724413692843,0.00090421,60883.0,60882.0,0.10384044]
[1724413693466,0.00090421,60883.0,60882.0,0.43209542]
[1724413693672,0.00090421,60883.0,60882.0,0.51129542]
[1724413693874,0.00090421,60883.0,60882.0,0.83979942]
[1724413694120,0.00090421,60883.0,60882.0,0.83979921]
[1724413694548,0.00090421,60883.0,60882.0,0.82182404]
[1724413694750,0.00090421,60883.0,60882.0,0.83979928]
[1724413695310,0.00090421,60883.0,60882.0,0.84179928]
[1724413695512,0.00090421,60883.0,60882.0,0.49532004]
[1724413695719,0.00090421,60883.0,60882.0,0.51329553]
[1724413696298,0.00090421,60883.0,60882.0,0.49232004]
[1724413696525,0.00090421,60883.0,60882.0,0.51029555]
[1724413696685,0.00090421,60883.0,60882.0,0.49232004]
[1724413697959,0.00090421,60883.0,60882.0,0.82182404]
[1724413698186,0.00090421,60883.0,60882.0,0.83979945]
[1724413698393,0.00090421,60883.0,60882.0,0.49332004]
[1724413698589,0.00090421,60883.0,60882.0,0.51129562]
[1724413698813,0.00090421,60883.0,60882.0,0.49332004]
[1724413699646,0.00090421,60883.0,60882.0,0.49414204]
[1724413700480,0.00090421,60883.0,60882.0,0.49314204]
[1724413700703,0.00090421,60883.0,60882.0,0.49414204]
[1724413701244,0.00090421,60883.0,60882.0,0.49614204]
[1724413702682,0.00090421,60883.0,60882.0,0.33189004]
[1724413703057,0.00090421,60883.0,60882.0,0.49614204]
[1724413705143,0.00090421,60883.0,60882.0,0.32889004]
[1724413705254,0.00090421,60883.0,60882.0,0.49414204]
[1724413707102,0.00090421,60883.0,60882.0,0.49614204]
[1724413707536,0.00090421,60883.0,60882.0,0.33189004]
[1724413707974,0.00090421,60883.0,60882.0,0.32889004]
[1724413710071,0.00090421,60883.0,60882.0,0.24969004]
[1724413710689,0.07720421,60883.0,60882.0,0.02228706]
[1724413710898,0.24145321,60883.0,60882.0,0.001822]
[1724413711274,0.64323966,60883.0,60882.0,0.001822]
[1724413712064,0.64323966,60883.0,60882.0,0.000822]
[1724413712261,0.64423966,60883.0,60882.0,0.000822]
[1724413713245,0.57295121,60883.0,60882.0,0.000822]
[1724413713777,0.64623966,60883.0,60882.0,0.000822]
[1724413715445,0.57295121,60883.0,60882.0,0.000822]
[1724413718039,0.24445321,60883.0,60882.0,0.000822]
[1724413719447,0.00390421,60883.0,60882.0,0.000822]
[1724413720173,0.05276959,60883.0,60882.0,0.000822]
[1724413720573,0.00390421,60883.0,60882.0,0.000822]
[1724413721801,0.05276801,60883.0,60882.0,0.000822]
[1724413722670,0.00390421,60883.0,60882.0,0.000822]
[1724413722873,0.05276801,60883.0,60882.0,0.000822]
[1724413723352,0.00390421,60883.0,60882.0,0.000822]
[1724413723587,0.00390421,60883.0,60882.0,0.066322]
[1724413723788,0.00390421,60883.0,60882.0,0.08170943]
[1724413724184,0.00390421,60883.0,60882.0,0.08070943]
[1724413724299,0.00390421,60883.0,60882.0,0.08170943]
[1724413725929,0.00390421,60883.0,60882.0,0.08070943]
[1724413726397,0.00390421,60883.0,60882.0,0.08170943]
[1724413728527,0.00390421,60883.0,60882.0,0.08070943]
[1724413731097,0.00390421,60883.0,60882.0,0.08170943]
[1724413733056,0.00390421,60883.0,60882.0,0.08070943]
[1724413734418,0.00390421,60883.0,60882.0,0.08170943]
[1724413734974,0.00390421,60883.0,60882.0,0.24571241]
[1724413735174,0.00390421,60883.0,60882.0,0.24471241]
[1724413737434,0.00390421,60883.0,60882.0,0.40896441]
[1724413737640,0.00390421,60883.0,60882.0,0.24571241]
[1724413738259,0.00390421,60883.0,60882.0,0.32271241]
[1724413739289,0.00394421,60883.0,60882.0,0.32271241]
[1724413740454,0.00394421,60883.0,60882.0,0.31971241]
[1724413743601,0.00394421,60883.0,60882.0,0.32071241]
[1724413743996,0.00394421,60883.0,60882.0,0.31971241]
[1724413745475,0.00394421,60883.0,60882.0,0.32071241]
[1724413745794,0.00394421,60883.0,60882.0,0.31971241]
[1724413746611,0.00394421,60883.0,60882.0,0.32071241]
[1724413746817,0.00394421,60883.0,60882.0,0.48496441]
[1724413747033,0.00394421,60883.0,60882.0,0.32071241]
[1724413747442,0.00394421,60883.0,60882.0,0.81546841]
[1724413747721,0.00394421,60883.0,60882.0,0.32271241]
[1724413751764,0.00394421,60883.0,60882.0,0.48696441]
[1724413752379,0.00394421,60883.0,60882.0,0.32271241]
[1724413754656,0.00394421,60883.0,60882.0,0.48696441]
[1724413755284,0.00394421,60883.0,60882.0,0.32271241]
[1724413756564,0.00394421,60883.0,60882.0,0.48696441]
[1724413756762,0.00394421,60883.0,60882.0,0.81546841]
[1724413758842,0.00398421,60883.0,60882.0,0.81546841]
[1724413760833,0.00398421,60883.0,60882.0,0.8334442]
[1724413763212,0.00398421,60883.0,60882.0,1.4904522]
[1724413764002,0.00198421,60883.0,60882.0,1.4904522]
[1724413764388,0.00098421,60883.0,60882.0,1.4924522]
[1724413764842,0.00098421,60883.0,60882.0,1.16694742]
[1724413765266,0.00098421,60883.0,60882.0,1.16394742]
[1724413765655,0.00098421,60883.0,60882.0,1.16594742]
[1724413766013,0.00098421,60883.0,60882.0,0.83744342]
[1724413766241,0.00098421,60883.0,60882.0,0.83844342]
[1724413766444,0.00098421,60883.0,60882.0,0.84044342]
[1724413767375,0.00098421,60883.0,60882.0,0.76544342]
[1724413768159,0.00098421,60883.0,60882.0,0.74746841]
[1724413768366,0.00098421,60883.0,60882.0,0.76544347]
[1724413770861,0.00098421,60883.0,60882.0,0.84414347]
[1724413771062,0.00098421,60883.0,60882.0,1.17264747]
[1724413775659,0.00098421,60883.0,60882.0,1.15467241]
[1724413775809,0.00098421,60883.0,60882.0,1.17264745]
[1724413777076,0.00098421,60883.0,60882.0,1.16864745]
[1724413777402,0.00198421,60883.0,60882.0,1.17164745]
[1724413777603,0.00298421,60883.0,60882.0,1.17764745]
[1724413781917,0.00298421,60883.0,60882.0,1.17764742]
[1724413782112,0.00298421,60883.0,60882.0,1.09894742]
[1724413783364,0.00298421,60883.0,60882.0,1.17454742]
[1724413785334,0.00298421,60883.0,60882.0,1.17454747]
[1724413785554,0.00298421,60883.0,60882.0,0.84604347]
[1724413788339,0.00298421,60883.0,60882.0,1.17454747]
[1724413789965,0.00298421,60883.0,60882.0,0.84604347]
[1724413792441,0.00298421,60883.0,60882.0,0.51453947]
[1724413792651,0.00298421,60883.0,60882.0,0.84604347]
[1724413795487,0.00298421,60883.0,60882.0,0.84604394]
[1724413798364,0.00298421,60883.0,60882.0,0.84604409]
[1724413800361,0.00298421,60883.0,60882.0,0.84604436]
[1724413804378,0.00298421,60883.0,60882.0,0.82806841]
[1724413804583,0.00298421,60883.0,60882.0,0.51754036]
[1724413807003,0.00298421,60883.0,60882.0,0.62961376]
[1724413807443,0.00298421,60883.0,60882.0,0.38976176]
[1724413808735,0.00298421,60883.0,60882.0,0.27768836]
[1724413808938,0.00298421,60883.0,60882.0,0.21018836]
[1724413809138,0.00298421,60883.0,60882.0,0.19221241]
[1724413813009,0.00298421,60883.0,60882.0,0.19521241]
[1724413813732,0.00298421,60883.0,60882.0,0.19221241]
[1724413813987,0.00298421,60883.0,60882.0,0.19321241]
[1724413814241,0.00298421,60883.0,60882.0,0.19521241]
[1724413815906,0.00298421,60883.0,60882.0,0.25601241]
[1724413816377,0.00298421,60883.0,60882.0,0.49576441]
[1724413817327,0.00298421,60883.0,60882.0,0.82426841]
[1724413820870,0.00298421,60883.0,60882.0,1.15277241]
[1724413829550,0.00302421,60883.0,60882.0,1.15277241]
[1724413830984,0.00302421,60883.0,60882.0,0.82426841]
[1724413831382,0.00302421,60883.0,60882.0,0.81667238]
[1724413832225,0.00302421,60883.0,60882.0,1.14517638]
[1724413832815,0.00302421,60883.0,60882.0,0.81667238]
[1724413833286,0.00302421,60883.0,60882.0,1.14517638]
[1724413836982,0.00302421,60883.0,60882.0,1.47368038]
[1724413837725,0.00302421,60883.0,60882.0,1.58575378]
[1724413855102,0.00302421,60883.0,60882.0,1.47368038]
[1724413856381,0.00302421,60883.0,60882.0,1.91425778]
[1724413856564,0.00302421,60883.0,60882.0,2.01425778]
[1724413856761,0.00302421,60883.0,60882.0,2.01525778]
[1724413857024,0.00302421,60883.0,60882.0,2.05059347]
[1724413857570,0.00202421,60883.0,60882.0,2.04459347]
[1724413857775,0.00202421,60883.0,60882.0,2.04559347]
[1724413858197,0.00202421,60883.0,60882.0,2.05259347]
[1724413858627,0.00202421,60883.0,60882.0,2.04559347]
[1724413859202,0.00102421,60883.0,60882.0,2.04959347]
[1724413859596,0.00102421,60883.0,60882.0,2.06059347]
[1724413860756,0.00102421,60883.0,60882.0,2.06059293]
[1724413861375,0.00102421,60883.0,60882.0,1.58368038]
[1724413861584,0.00102421,60883.0,60882.0,1.62025378]
[1724413862444,0.00102421,60883.0,60882.0,1.50818038]
[1724413862620,0.00102421,60883.0,60882.0,1.62025378]
[1724413864945,0.01302421,60883.0,60882.0,0.19461638]
[1724413865149,0.09442421,60883.0,60882.0,0.0306134]
[1724413865427,0.98900585,60883.0,60882.0,0.0306134]
[1724413865632,1.39719178,60883.0,60882.0,0.022822]
[1724413865834,1.06869378,60883.0,60882.0,0.022822]
[1724413866046,1.06869378,60883.0,60882.0,0.011822]
[1724413866225,1.06869378,60883.0,60882.0,0.015822]
[1724413866687,1.06869378,60883.0,60882.0,0.019822]
[1724413867110,1.39719178,60883.0,60882.0,0.019822]
[1724413867520,1.39719178,60883.0,60882.0,0.004822]
[1724413867669,1.39719178,60883.0,60882.0,0.000822]
[1724413867882,1.40219178,60883.0,60882.0,0.000822]
[1724413868286,1.40219178,60883.0,60878.0,0.000822]
[1724413868287,1.15182,60879.0,60878.0,0.000822]
[1724413868468,1.50599638,60879.0,60878.0,0.000822]
[1724413868679,1.62801444,60879.0,60878.0,0.000822]
[1724413869331,1.51719638,60879.0,60878.0,0.000822]
[1724413870771,1.62269978,60879.0,60878.0,0.001822]
[1724413871005,1.78467856,60879.0,60878.0,0.001822]
[1724413871422,1.68117516,60879.0,60878.0,0.000822]
[1724413872023,1.71217516,60879.0,60878.0,0.001822]
[1724413872382,1.72417516,60879.0,60878.0,0.002822]
[1724413873387,1.79722653,60879.0,60878.0,0.002822]
[1724413874410,1.72417516,60879.0,60878.0,0.002822]
[1724413875226,1.61210176,60879.0,60878.0,0.002822]
[1724413875428,1.77285027,60879.0,60878.0,0.002822]
[1724413875632,1.72417516,60879.0,60878.0,0.002822]
[1724413875857,1.77285027,60879.0,60878.0,0.002822]
[1724413876300,1.72417516,60879.0,60878.0,0.002822]
[1724413881679,1.72417516,60879.0,60859.0,0.000822]
[1724413881680,0.821557,60860.0,60859.0,0.000822]
[1724413881880,1.52255638,60860.0,60859.0,0.000822]
[1724413882088,1.54555638,60860.0,60859.0,0.000822]
[1724413882301,1.87417938,60860.0,60859.0,0.000822]
[1724413882515,1.92280428,60860.0,60859.0,0.000822]
[1724413882722,1.92280428,60860.0,60858.0,0.000821]
[1724413882723,1.246498,60859.0,60858.0,0.000821]
[1724413882919,1.48211284,60859.0,60858.0,0.000821]
[1724413883130,1.43350098,60859.0,60858.0,0.000821]
[1724413883321,1.152254,60856.0,60855.0,0.000822]
[1724413883464,1.53043038,60856.0,60855.0,0.000822]
[1724413883678,1.67139902,60856.0,60855.0,0.000822]
[1724413884515,1.83995953,60856.0,60855.0,0.000822]
[1724413885501,1.84295953,60856.0,60855.0,0.000822]
[1724413885979,1.86873613,60856.0,60855.0,0.000822]
[1724413886201,1.87273613,60856.0,60855.0,0.000822]
[1724413886410,1.88393613,60856.0,60855.0,0.000822]
[1724413887046,1.88093613,60856.0,60855.0,0.000822]
[1724413887434,1.88693613,60856.0,60855.0,0.001822]
[1724413888019,1.88781213,60856.0,60855.0,0.001822]
[1724413889184,1.23052413,60856.0,60855.0,0.001822]
[1724413889385,1.24152413,60856.0,60855.0,0.001822]
[1724413890032,0.43204324,60856.0,60855.0,0.001822]
[1724413891112,0.18862124,60856.0,60855.0,0.001822]
[1724413891375,0.0476526,60856.0,60855.0,0.001822]
[1724413893467,0.0476526,60856.0,60855.0,0.02421038]
[1724413893688,0.0476526,60856.0,60855.0,0.001822]
[1724413899843,0.32828651,60856.0,60855.0,0.001822]
[1724413901621,0.0476526,60856.0,60855.0,0.001822]
[1724413902149,0.15237508,60856.0,60855.0,0.001822]
[1724413902808,0.15237508,60856.0,60855.0,0.065922]
[1724413903054,0.0476526,60856.0,60855.0,0.636497]
[1724413903255,0.0476526,60856.0,60855.0,0.965147]
[1724413903770,0.0476526,60856.0,60855.0,0.96947523]
[1724413903929,0.0376526,60856.0,60855.0,0.96847523]